[Event "Late-Titled-Tuesday-Blitz-September-19-2023"]
[Site "Chess.com"]
[Date "2023.09.19"]
[Round "11"]
[White "chessdjw"]
[Black "SpeedofLight0"]
[Result "0-1"]
[WhiteElo "2687"]
[BlackElo "3068"]
[TimeControl "180+1"]
[EndTime "16:07:55 PDT"]
[Termination "SpeedofLight0 won on time"]

1. d4 {[%clk 0:03:00.9]} 1... e6 {[%clk 0:02:58.6]} 2. Nf3 {[%clk 0:03:00.4]}
2... f5 {[%clk 0:02:58]} 3. g3 {[%clk 0:02:59.5]} 3... Nf6 {[%clk 0:02:58.1]} 4.
Bg2 {[%clk 0:02:58.4]} 4... g6 {[%clk 0:02:58.7]} 5. O-O {[%clk 0:02:58.1]} 5...
Bg7 {[%clk 0:02:59.6]} 6. c4 {[%clk 0:02:58.3]} 6... O-O {[%clk 0:03:00.5]} 7.
Nc3 {[%clk 0:02:58]} 7... d6 {[%clk 0:03:01.4]} 8. Qc2 {[%clk 0:02:56.8]} 8...
Qe7 {[%clk 0:03:01.4]} 9. e4 {[%clk 0:02:52.3]} 9... e5 {[%clk 0:03:01.6]} 10.
Re1 {[%clk 0:02:29.6]} 10... f4 {[%clk 0:03:00.4]} 11. gxf4 {[%clk 0:02:24.9]}
11... Nc6 {[%clk 0:02:59.9]} 12. Nd5 {[%clk 0:01:52.7]} 12... Qf7 {[%clk
0:02:33.8]} 13. Ng5 {[%clk 0:01:33]} 13... Qd7 {[%clk 0:02:29.8]} 14. dxe5
{[%clk 0:01:23.6]} 14... dxe5 {[%clk 0:02:28.8]} 15. Bh3 {[%clk 0:01:22.2]}
15... Nd4 {[%clk 0:02:24.5]} 16. Qd3 {[%clk 0:00:56.8]} 16... Qd6 {[%clk
0:02:21.4]} 17. fxe5 {[%clk 0:00:53.5]} 17... Qxe5 {[%clk 0:02:22.3]} 18. f4
{[%clk 0:00:53]} 18... Qxg5+ {[%clk 0:02:05.3]} 19. fxg5 {[%clk 0:00:51.3]}
19... Nxd5 {[%clk 0:02:05.1]} 20. Bxc8 {[%clk 0:00:12.4]} 20... Nb4 {[%clk
0:02:03]} 21. Qh3 {[%clk 0:00:04.7]} 21... Raxc8 {[%clk 0:02:00.7]} 22. Be3
{[%clk 0:00:03.8]} 22... Nf3+ {[%clk 0:01:56.5]} 23. Kh1 {[%clk 0:00:04.1]}
23... Nc2 {[%clk 0:01:56.4]} 24. Bf2 {[%clk 0:00:03.5]} 24... Nfxe1 {[%clk
0:01:47.5]} 25. Rxe1 {[%clk 0:00:03.2]} 25... Nxe1 {[%clk 0:01:42.5]} 26. Bxe1
{[%clk 0:00:03.9]} 26... Rce8 {[%clk 0:01:42.6]} 27. Bg3 {[%clk 0:00:03.5]}
27... Rxe4 {[%clk 0:01:41.9]} 28. Qd7 {[%clk 0:00:02.6]} 28... Rfe8 {[%clk
0:01:35]} 29. Kg2 {[%clk 0:00:02.4]} 29... Bxb2 {[%clk 0:01:27]} 30. Qd5+ {[%clk
0:00:02]} 30... Kh8 {[%clk 0:01:26.7]} 31. Qxb7 {[%clk 0:00:02.9]} 31... Re2+
{[%clk 0:01:23.9]} 32. Kh3 {[%clk 0:00:02.9]} 32... Be5 {[%clk 0:01:22.9]} 33.
Qxa7 {[%clk 0:00:03]} 33... Re7 {[%clk 0:01:16.4]} 34. a4 {[%clk 0:00:02.8]}
34... h5 {[%clk 0:01:00.2]} 35. gxh6 {[%clk 0:00:02.3]} 35... Kh7 {[%clk
0:00:32]} 36. a5 {[%clk 0:00:02.7]} 36... Re4 {[%clk 0:00:31.9]} 37. Qa8 {[%clk
0:00:02.9]} 37... Bd4 {[%clk 0:00:31.5]} 38. a6 {[%clk 0:00:02.7]} 38... R4e6
{[%clk 0:00:27.7]} 39. a7 {[%clk 0:00:02.8]} 39... c6 {[%clk 0:00:28.1]} 40. Qb8
{[%clk 0:00:02.6]} 40... Bxa7 {[%clk 0:00:28.1]} 41. Qc8 {[%clk 0:00:02.9]}
41... Bd4 {[%clk 0:00:28]} 42. Qd8 {[%clk 0:00:03]} 42... Be3 {[%clk 0:00:26.8]}
43. Qc8 {[%clk 0:00:03.2]} 43... Bxh6 {[%clk 0:00:26.9]} 44. Qa8 {[%clk
0:00:02.8]} 44... Bg5 {[%clk 0:00:26.6]} 45. Qc8 {[%clk 0:00:03.3]} 45... Bf6
{[%clk 0:00:26.8]} 46. Qa8 {[%clk 0:00:03.5]} 46... Kg7 {[%clk 0:00:27.2]} 47.
Qc8 {[%clk 0:00:04]} 47... Kf7 {[%clk 0:00:27.6]} 48. Qa8 {[%clk 0:00:04.4]}
48... Re8 {[%clk 0:00:27.9]} 49. Qb7+ {[%clk 0:00:04.7]} 49... R8e7 {[%clk
0:00:28.3]} 50. Qc8 {[%clk 0:00:05.1]} 50... Bg5 {[%clk 0:00:26.6]} 51. Qa8
{[%clk 0:00:04.9]} 51... Rf6 {[%clk 0:00:24]} 52. Qc8 {[%clk 0:00:05.1]} 52...
Kg7 {[%clk 0:00:22.7]} 53. Kg4 {[%clk 0:00:05.1]} 53... Rf5 {[%clk 0:00:18]} 54.
Kh3 {[%clk 0:00:05.1]} 54... c5 {[%clk 0:00:16.3]} 55. Qc6 {[%clk 0:00:05.2]}
55... Bf6 {[%clk 0:00:16]} 56. Qc8 {[%clk 0:00:05.1]} 56... Bd4 {[%clk
0:00:15.9]} 57. Qc6 {[%clk 0:00:05]} 57... Be5 {[%clk 0:00:15.1]} 58. Kg4 {[%clk
0:00:04.9]} 58... Bxg3 {[%clk 0:00:15.2]} 59. hxg3 {[%clk 0:00:05.2]} 59... Rfe5
{[%clk 0:00:15.1]} 60. Qd6 {[%clk 0:00:05.1]} 60... Re4+ {[%clk 0:00:11.6]} 61.
Kh3 {[%clk 0:00:05.7]} 61... R7e5 {[%clk 0:00:11.1]} 62. Qd7+ {[%clk 0:00:05.9]}
62... Kf6 {[%clk 0:00:11.6]} 63. Qd8+ {[%clk 0:00:06.2]} 63... Kf7 {[%clk
0:00:11.9]} 64. Qd7+ {[%clk 0:00:06.6]} 64... Kf6 {[%clk 0:00:12.2]} 65. Qd8+
{[%clk 0:00:07.1]} 65... Kg7 {[%clk 0:00:05.5]} 66. Qc7+ {[%clk 0:00:07.1]}
66... Kh6 {[%clk 0:00:05.9]} 67. Qf7 {[%clk 0:00:06.2]} 67... Re6 {[%clk
0:00:05.7]} 68. Qf8+ {[%clk 0:00:06.3]} 68... Kh7 {[%clk 0:00:06.1]} 69. Qxc5
{[%clk 0:00:06.8]} 69... R4e5 {[%clk 0:00:06.3]} 70. Qc7+ {[%clk 0:00:07]} 70...
Re7 {[%clk 0:00:06.1]} 71. Qb6 {[%clk 0:00:07.2]} 71... R5e6 {[%clk 0:00:06.3]}
72. Qb5 {[%clk 0:00:07.1]} 72... Rc7 {[%clk 0:00:06.1]} 73. Qb3 {[%clk 0:00:06]}
73... Rec6 {[%clk 0:00:06.3]} 74. Qe3 {[%clk 0:00:05.1]} 74... Rxc4 {[%clk
0:00:06.9]} 75. Qe6 {[%clk 0:00:05.4]} 75... Kg7 {[%clk 0:00:07.2]} 76. Qd6
{[%clk 0:00:05.8]} 76... R4c5 {[%clk 0:00:07.2]} 77. Qe6 {[%clk 0:00:06]} 77...
Rf7 {[%clk 0:00:07.1]} 78. Qd6 {[%clk 0:00:05.9]} 78... Rcf5 {[%clk 0:00:07.5]}
79. Qd4+ {[%clk 0:00:06]} 79... R5f6 {[%clk 0:00:08.4]} 80. g4 {[%clk 0:00:06]}
80... Kh6 {[%clk 0:00:08.4]} 81. Qd2+ {[%clk 0:00:05.4]} 81... Rf4 {[%clk
0:00:08]} 82. Kg3 {[%clk 0:00:05.1]} 82... Kg5 {[%clk 0:00:05.6]} 83. Qe3 {[%clk
0:00:04.5]} 83... Rf6 {[%clk 0:00:04.3]} 84. Qe5+ {[%clk 0:00:04.4]} 84... Kh6
{[%clk 0:00:04.1]} 85. g5+ {[%clk 0:00:04.9]} 85... Kg7 {[%clk 0:00:04.3]} 86.
gxf6+ {[%clk 0:00:05]} 86... Rxf6 {[%clk 0:00:05.2]} 87. Kg4 {[%clk 0:00:05.3]}
87... Kf7 {[%clk 0:00:05.7]} 88. Qc7+ {[%clk 0:00:05.5]} 88... Kf8 {[%clk
0:00:03.7]} 89. Kg5 {[%clk 0:00:04.8]} 89... Re6 {[%clk 0:00:04.2]} 90. Qd7
{[%clk 0:00:04.2]} 90... Re7 {[%clk 0:00:03.3]} 91. Qd6 {[%clk 0:00:03.9]} 91...
Kf7 {[%clk 0:00:03.3]} 92. Qxg6+ {[%clk 0:00:04.2]} 92... Kf8 {[%clk 0:00:03.9]}
93. Qd6 {[%clk 0:00:04.4]} 93... Kf7 {[%clk 0:00:04]} 94. Qd5+ {[%clk
0:00:04.6]} 94... Kg7 {[%clk 0:00:04]} 95. Qd4+ {[%clk 0:00:04.1]} 95... Kf7
{[%clk 0:00:04.1]} 96. Kf5 {[%clk 0:00:04.8]} 96... Ke8 {[%clk 0:00:02.5]} 97.
Qd5 {[%clk 0:00:04.2]} 97... Rd7 {[%clk 0:00:01.9]} 98. Qc6 {[%clk 0:00:04.5]}
98... Kd8 {[%clk 0:00:01.8]} 99. Ke5 {[%clk 0:00:04.2]} 99... Re7+ {[%clk
0:00:02]} 100. Kf6 {[%clk 0:00:03.7]} 100... Rc7 {[%clk 0:00:02.1]} 101. Qb6
{[%clk 0:00:03.8]} 101... Kd7 {[%clk 0:00:02.1]} 102. Kf7 {[%clk 0:00:02.7]}
102... Rc6 {[%clk 0:00:01.6]} 103. Qb7+ {[%clk 0:00:02.4]} 103... Kd6 {[%clk
0:00:02.5]} 0-1